bitfinex/quotes_ETHUSD_20241215
["timestamp","ask_amount","ask_price","bid_price","bid_amount"]
[1734259936361,0.19294297,3865.0,3864.4,1.83271623]
[1734259936624,0.19301259,3864.9,3864.7,0.11877055]
[1734259936765,0.19301259,3864.8,3864.4,1.83271623]
[1734259937093,0.1614,3865.1,3864.4,1.83271623]
[1734259937293,0.19306126,3865.0,3864.5,0.11884133]
[1734259937516,0.19306126,3864.9,3864.5,0.11884133]
[1734259937675,0.19306126,3864.8,3864.5,0.11884133]
[1734259938010,0.19306126,3864.7,3864.5,0.11884133]
[1734259938207,0.1614,3865.1,3864.5,0.11884133]
[1734259938355,0.19312596,3865.0,3864.5,0.11884133]
[1734259938560,0.19312596,3864.9,3864.5,0.11884133]
[1734259938762,0.1614,3865.1,3864.5,0.11884133]
[1734259938763,0.19312596,3864.8,3864.5,0.11884133]
[1734259938964,0.19312596,3864.7,3864.5,0.11884133]
[1734259939163,0.19319727,3864.6,3864.5,0.11884133]
[1734259939468,0.1931781,3864.6,3864.5,0.11884133]
[1734259939773,0.1931781,3864.6,3864.1,0.7912]
[1734259939979,0.1931781,3864.5,3864.1,0.7912]
[1734259940187,0.19318854,3864.4,3864.1,0.7912]
[1734259940504,2.58745,3864.8,3864.1,0.7912]
[1734259940802,0.19329225,3864.7,3864.1,1.83271623]
[1734259940979,2.58732,3865.0,3864.1,1.83271623]
[1734259940980,0.19329225,3864.6,3864.1,1.83271623]
[1734259941300,0.19329225,3864.5,3864.1,1.83271623]
[1734259941496,0.19329225,3864.4,3864.1,1.83271623]
[1734259941703,2.58732,3865.0,3864.1,1.83271623]
[1734259941891,0.46820896,3864.9,3864.1,1.83271623]
[1734259942089,0.19333696,3864.8,3864.1,1.83271623]
[1734259942263,0.19333696,3864.7,3864.1,1.83271623]
[1734259942464,0.19333696,3864.6,3864.1,1.83271623]
[1734259942697,0.19333696,3864.5,3864.1,1.83271623]
[1734259942909,0.19333696,3864.4,3864.1,1.83271623]
[1734259943203,0.52720902,3864.8,3864.1,1.83271623]
[1734259943367,0.19329397,3864.7,3864.1,1.83271623]
[1734259943699,0.19329397,3864.6,3864.1,1.83271623]
[1734259943868,0.19329397,3864.5,3864.1,1.83271623]
[1734259944070,0.19329397,3864.4,3864.1,1.83271623]
[1734259944269,2.58732,3865.0,3864.1,1.83271623]
[1734259944470,0.46814714,3864.9,3864.1,1.83271623]
[1734259944674,0.19327514,3864.8,3864.1,1.83271623]
[1734259944895,0.19327514,3864.7,3864.1,1.83271623]
[1734259945205,0.19327514,3864.6,3864.1,1.83271623]
[1734259945502,0.1614,3865.1,3864.1,1.83271623]
[1734259945665,0.19325996,3865.0,3864.1,1.83271623]
[1734259945867,0.19325996,3864.9,3864.1,1.83271623]
[1734259946066,0.19325996,3864.8,3864.1,1.83271623]
[1734259946304,0.19325996,3864.7,3864.1,1.83271623]
[1734259946500,0.19325996,3864.6,3864.1,1.83271623]
[1734259946808,0.19325996,3864.5,3864.1,3.62942623]
[1734259947102,0.52468432,3865.0,3864.2,0.8181]
[1734259947510,0.19324621,3864.9,3864.3,0.11952853]
[1734259947692,0.19324621,3864.8,3864.3,0.11952853]
[1734259947869,0.19324621,3864.7,3864.3,0.11952853]
[1734259948201,0.19324621,3864.6,3864.4,0.8181]
[1734259948432,0.52468432,3865.0,3864.4,0.8181]
[1734259948731,0.19324328,3864.9,3864.5,0.11945775]
[1734259949032,0.19324328,3864.8,3864.5,0.11945775]
[1734259949326,0.19324328,3864.7,3864.5,0.11945775]
[1734259949535,0.19324328,3864.6,3864.5,0.11945775]
[1734259950029,0.52468432,3865.0,3864.5,0.11945775]
[1734259950233,0.19324318,3864.9,3864.5,0.11945775]
[1734259950436,0.19324318,3864.8,3864.5,2.70709775]
[1734259950751,0.1614,3865.7,3864.8,0.8181]
[1734259951026,0.19324815,3865.6,3864.8,0.8181]
[1734259951171,0.19324815,3865.5,3864.9,0.11950085]
[1734259951472,0.19324815,3865.4,3864.9,0.11950085]
[1734259951672,0.19324815,3865.3,3864.9,0.11950085]
[1734259951905,0.19324815,3865.2,3864.9,0.11950085]
[1734259952111,0.1614,3865.7,3864.9,0.11950085]
[1734259952419,0.19325834,3865.6,3864.9,0.11950085]
[1734259952723,0.19325834,3865.5,3864.9,0.11950085]
[1734259952875,0.19325834,3865.4,3864.9,0.11950085]
[1734259953067,0.19325834,3865.3,3864.9,0.11950085]
[1734259953296,0.1614,3866.0,3865.1,0.7916]
[1734259953501,0.19327065,3865.9,3865.2,0.11939469]
[1734259953711,0.1614,3866.3,3865.2,0.11939469]
[1734259953712,0.19327065,3865.8,3865.2,0.91099469]
[1734259953911,0.19327065,3865.7,3865.2,0.7916]
[1734259954211,0.19327065,3865.6,3865.4,0.7916]
[1734259954431,2.74787,3866.3,3865.4,0.7916]
[1734259954640,0.51015629,3866.1,3865.5,0.11928855]
[1734259954809,0.19324351,3866.0,3865.5,0.11928855]
[1734259955134,0.19324351,3865.9,3865.5,0.11928855]
[1734259955410,0.19324351,3865.8,3865.5,0.11928855]
[1734259955586,0.19324351,3865.7,3865.5,0.11928855]
[1734259955877,0.51015629,3866.1,3865.5,0.11928855]
[1734259956036,0.19324022,3866.0,3865.5,0.11928855]
[1734259956230,0.86343762,3866.1,3865.5,0.11928855]
[1734259956231,0.19324022,3865.9,3865.5,0.11928855]
[1734259956454,0.86343762,3866.1,3865.5,0.11928855]
[1734259956455,0.19324022,3865.8,3865.5,0.11928855]
[1734259956620,0.19324022,3865.7,3865.5,0.11928855]
[1734259956817,3.6753104,3866.6,3865.6,0.7916]
[1734259957018,0.59325692,3866.5,3865.6,0.7916]
[1734259957257,0.59325692,3866.5,3865.7,0.1192178]
[1734259957258,0.19322865,3866.4,3865.7,0.1192178]
[1734259957419,0.19327689,3866.3,3865.7,0.1192178]
[1734259957946,0.19327689,3866.2,3865.7,0.1192178]
[1734259958251,0.19327689,3866.1,3865.7,0.1192178]
[1734259958420,0.19327689,3866.0,3865.7,0.1192178]
[1734259958621,0.19327689,3865.9,3865.7,0.1192178]
[1734259958955,0.19327689,3865.8,3865.7,0.1192178]
[1734259959260,0.50456257,3866.5,3865.7,0.1192178]
[1734259959557,0.19325027,3866.4,3865.7,0.1192178]
[1734259959772,0.19325027,3866.3,3865.7,0.1192178]
[1734259959920,0.19325027,3866.2,3865.7,0.1192178]
[1734259960252,0.19325027,3866.1,3865.7,0.1192178]
[1734259960474,0.19325027,3866.0,3865.7,0.1192178]
[1734259960632,0.19325027,3865.9,3865.7,0.1192178]
[1734259960818,0.19325027,3865.8,3865.7,0.1192178]
[1734259963427,0.19316472,3865.8,3865.3,0.7916]
[1734259963727,0.19316442,3865.7,3865.3,0.7916]
[1734259963927,0.1614,3866.1,3865.4,0.1182673]
[1734259964128,0.19316421,3866.0,3865.4,0.1182673]
[1734259964438,0.19316421,3865.9,3865.4,0.1182673]
[1734259964651,0.19316421,3865.8,3865.4,0.1182673]
[1734259964850,0.19316421,3865.7,3865.4,0.1182673]
[1734259965050,0.51184024,3865.9,3865.4,0.1182673]
[1734259965259,0.19314844,3865.8,3865.4,0.1182673]
[1734259965427,0.19314844,3865.7,3865.4,0.1182673]
[1734259965763,0.35454844,3865.6,3865.4,0.1182673]
[1734259966062,0.19314844,3865.5,3865.4,0.1182673]
[1734259966225,0.19314844,3865.5,3865.0,0.7916]
[1734259966426,0.19314844,3865.4,3865.0,0.7916]
[1734259966625,0.19317499,3865.3,3865.1,0.11844474]
[1734259966832,0.19317499,3865.2,3865.1,0.11844474]
[1734259967041,0.19317499,3865.2,3865.0,0.7916]
[1734259967268,3.09855024,3865.9,3865.1,0.11844474]
[1734259967568,0.19317704,3865.8,3865.1,0.11844474]
[1734259967746,0.19317704,3865.7,3865.1,0.11844474]
[1734259967949,0.19317704,3865.6,3865.1,0.11844474]
[1734259968273,0.19317704,3865.5,3865.1,0.11844474]
[1734259968465,0.19317704,3865.4,3865.0,0.7916]
[1734259968626,0.19317704,3865.3,3865.2,0.11848067]
[1734259968830,0.19317704,3865.3,3865.1,0.11851605]
[1734259969027,3.09855024,3865.9,3865.2,0.11848067]
[1734259969227,0.19319024,3865.8,3865.2,0.11848067]
[1734259969463,0.19319024,3865.7,3865.0,0.7916]
[1734259969667,0.19319024,3865.6,3865.3,0.11841473]
[1734259969843,2.58681,3865.8,3865.0,0.7916]
[1734259970045,0.19320579,3865.7,3865.0,0.7916]
[1734259970269,0.19320579,3865.6,3865.0,0.7916]
[1734259970575,0.19320579,3865.5,3865.1,0.11848549]
[1734259970876,0.19320579,3865.4,3865.1,0.11848549]
[1734259971068,0.19320579,3865.3,3865.0,0.7916]
[1734259971370,0.19326637,3865.2,3865.1,0.11848549]
[1734259971867,0.19326637,3865.2,3865.0,0.7916]
[1734259972073,2.58681,3865.8,3865.1,0.11848549]
[1734259972270,3.14847865,3865.7,3865.1,0.11848549]
[1734259972486,0.19327852,3865.6,3865.1,0.11848549]
[1734259972767,0.19327852,3865.5,3865.0,0.7916]
[1734259972974,0.19327852,3865.4,3865.2,0.11845011]
[1734259973152,2.58687,3865.7,3865.1,0.11848549]
[1734259973153,0.19327852,3865.3,3865.1,0.11848549]
[1734259973349,0.19327852,3865.2,3865.0,0.7916]
[1734259973556,3.09857024,3865.9,3865.0,0.7916]
[1734259973850,0.50317895,3865.8,3865.0,0.7916]
[1734259974158,3.09857024,3865.9,3865.0,0.7916]
[1734259974159,0.19332193,3865.7,3865.0,1.83311623]
[1734259974360,0.19332193,3865.6,3865.0,1.83311623]
[1734259974574,0.19332193,3865.5,3865.0,1.83311623]
[1734259974764,0.19332193,3865.4,3865.0,1.83311623]
[1734259975086,0.19332193,3865.3,3865.0,1.83311623]
[1734259975290,0.06379196,3865.2,3865.1,3.38595]
[1734259975441,1.62621685,3867.1,3865.6,0.7987]
[1734259975631,0.52962114,3867.0,3866.3,0.7987]
[1734259975832,0.51431956,3867.2,3866.3,0.7987]
[1734259976248,2.58572,3867.4,3866.3,0.7987]
[1734259977639,2.58572,3867.4,3866.4,0.11811228]
[1734259978345,0.51778595,3867.3,3866.4,0.11811228]
[1734259980800,0.51778595,3867.3,3866.5,0.11807693]
[1734259981143,0.51778595,3867.3,3866.3,3.38513]
[1734259981395,0.51778595,3867.3,3866.6,0.11804158]
[1734259981548,0.51778595,3867.3,3866.3,3.38513]
[1734259981742,0.51778595,3867.3,3866.7,0.11800622]
[1734259981940,0.51778595,3867.3,3866.4,2.58637]
[1734259982141,0.51778595,3867.3,3866.8,0.11797088]
[1734259982342,0.51778595,3867.3,3866.4,2.58637]
[1734259982601,0.51778595,3867.3,3866.9,0.11793553]
[1734259982741,0.51778595,3867.3,3866.4,2.58637]
[1734259982943,0.51778595,3867.3,3867.0,0.11790018]
[1734259983180,0.51778595,3867.3,3866.4,2.58637]
[1734259983379,0.51778595,3867.3,3867.1,0.11786484]
[1734259983642,0.51778595,3867.3,3866.4,2.58637]
[1734259983864,0.51778595,3867.3,3867.2,0.1178295]
[1734259984098,2.58565,3867.5,3866.4,2.58637]
[1734259984443,2.58565,3867.5,3866.5,0.11807693]
[1734259985539,0.52746718,3867.4,3866.5,0.11807693]
[1734259986016,3.11317718,3867.4,3866.5,0.11807693]
[1734259986306,0.2252,3867.2,3866.3,0.7987]
[1734259986522,0.2252,3867.2,3866.6,0.11673806]
[1734259986667,0.2252,3867.2,3866.3,0.7987]
[1734259986668,2.58599,3867.0,3866.3,0.7987]
[1734259987130,2.58599,3867.0,3866.4,0.11680877]
[1734259988029,2.58615,3866.8,3866.4,0.11680877]
[1734259988168,2.58615,3866.8,3866.3,0.7987]
[1734259988612,2.58615,3866.8,3866.4,0.11683422]
[1734259988927,2.58615,3866.8,3866.3,0.7987]
[1734259989292,2.58615,3866.8,3866.4,0.11683422]
[1734259989493,2.58615,3866.8,3866.3,0.7987]
[1734259989892,2.58615,3866.8,3866.4,0.11683422]
[1734259990498,2.58615,3866.8,3866.3,0.7987]
[1734259990901,2.58615,3866.8,3866.4,0.11683422]
[1734259991382,2.58615,3866.8,3866.3,0.7987]
[1734259991793,2.58615,3866.8,3866.4,0.11683422]
[1734259992192,2.58615,3866.8,3866.3,0.7987]
[1734259992407,2.58615,3866.8,3866.5,0.11679887]
[1734259992609,2.58615,3866.8,3866.4,0.11683422]
[1734259992943,2.58615,3866.8,3866.3,0.7987]
[1734259993281,2.58619,3866.7,3866.4,0.11683422]
[1734259993482,2.58619,3866.7,3866.3,0.7987]
[1734260001132,2.5865,3866.3,3866.0,0.7608]
[1734260001412,2.5865,3866.3,3866.1,0.11723528]
[1734260001617,2.5865,3866.3,3865.5,1.04151623]
[1734260001812,2.5865,3866.3,3866.2,0.11719992]
[1734260002020,2.5865,3866.3,3865.8,0.7608]
[1734260002519,2.5865,3866.3,3865.9,0.117306]
[1734260002892,2.5865,3866.3,3865.8,0.7608]
[1734260003091,2.5865,3866.3,3866.0,0.11727064]
[1734260003293,2.5865,3866.3,3865.9,0.117306]
[1734260003488,2.5865,3866.3,3866.1,0.11723528]
[1734260003716,2.5865,3866.3,3866.0,0.11727064]
[1734260004032,2.5865,3866.3,3866.1,0.11723528]
[1734260004239,2.5865,3866.3,3865.8,0.7608]
[1734260004442,2.5865,3866.3,3866.2,0.11719992]
[1734260004739,2.5865,3866.3,3865.8,0.7608]
[1734260005233,2.5865,3866.3,3865.9,0.117306]
[1734260005449,2.5865,3866.3,3865.8,0.7608]
[1734260005645,2.5865,3866.3,3866.0,0.11727064]
[1734260005810,2.5865,3866.3,3865.9,0.117306]
[1734260006010,2.5865,3866.3,3865.8,0.7608]
[1734260006212,2.5865,3866.3,3866.0,0.11727064]
[1734260006401,2.5865,3866.3,3865.8,0.7608]
[1734260006604,2.5865,3866.3,3866.1,0.11723528]
[1734260006822,2.5865,3866.3,3865.8,0.7608]
[1734260007003,2.5865,3866.3,3866.2,0.11719992]
[1734260007207,2.5865,3866.3,3865.8,0.7608]
[1734260007405,2.5865,3866.3,3866.2,0.11719992]
[1734260007606,2.5865,3866.3,3865.8,0.7608]
[1734260007802,2.5865,3866.3,3866.2,0.11719992]
[1734260008436,2.5865,3866.3,3865.8,0.7608]
[1734260008639,2.5865,3866.3,3866.2,0.11719992]
[1734260008818,2.5865,3866.3,3865.8,0.7608]
[1734260009012,2.5865,3866.3,3866.2,0.11719992]
[1734260009203,2.5865,3866.3,3865.8,0.7608]
[1734260009404,2.5865,3866.3,3866.2,0.1169795]
[1734260009612,2.5865,3866.3,3865.8,0.7608]
[1734260009849,2.5865,3866.3,3866.2,0.1169795]
[1734260010009,2.5865,3866.3,3865.8,0.7608]
[1734260010205,2.58633,3866.5,3866.2,0.1169795]
[1734260010405,2.58633,3866.5,3865.8,0.7608]
[1734260010605,2.58633,3866.5,3866.3,0.11694414]
[1734260010913,2.58633,3866.5,3865.8,0.7608]
[1734260011327,2.58633,3866.5,3865.9,0.11722303]
[1734260018643,0.7313294,3866.7,3865.9,0.11722303]
[1734260019258,3.3175394,3866.7,3865.9,0.11722303]
[1734260019740,3.92032948,3866.7,3865.9,0.06722303]
[1734260019914,3.92032948,3866.7,3865.9,0.11565527]
[1734260021235,3.92032948,3866.7,3866.0,0.89598948]
[1734260021439,3.92032948,3866.7,3865.9,0.11565527]
[1734260021440,3.92032948,3866.7,3865.8,1.80231623]
[1734260021634,3.92032948,3866.7,3866.1,0.11561991]
[1734260021864,3.92032948,3866.7,3865.8,1.80231623]
[1734260022159,3.92032948,3866.7,3866.2,0.11558456]
[1734260022360,0.5004474,3866.6,3865.9,0.11559896]
[1734260022661,3.3175394,3866.7,3866.3,0.11545754]
[1734260022966,3.3175394,3866.7,3865.8,1.80231623]
[1734260023178,3.3175394,3866.7,3866.4,0.11542219]
[1734260023748,3.3175394,3866.7,3866.5,0.11538684]
[1734260024076,3.3175394,3866.7,3865.8,2.88390669]
[1734260024269,3.3175394,3866.7,3866.6,0.11535149]
[1734260024464,3.92032948,3866.7,3865.8,2.88390669]
[1734260024777,5.00447405,3866.7,3865.9,2.24035295]
[1734260025082,5.00447405,3866.7,3866.0,0.89614118]
[1734260025405,4.40168397,3866.7,3866.1,0.11552825]
[1734260025547,4.40168397,3866.7,3865.8,2.88390669]
[1734260025899,4.40168397,3866.7,3865.9,2.35606876]
[1734260026068,4.40168397,3866.7,3866.0,0.89618792]
[1734260026395,4.40168397,3866.7,3865.9,0.11559896]
[1734260026699,4.40168397,3866.7,3866.1,0.11552825]
[1734260026999,4.40168397,3866.7,3866.2,0.11549289]
[1734260027147,2.58626,3866.6,3866.2,0.11549289]
[1734260027349,2.58626,3866.6,3865.8,0.7608]
[1734260027581,2.58626,3866.6,3866.3,0.11545754]
[1734260027911,2.58626,3866.6,3865.9,0.11559896]
[1734260028104,2.58626,3866.6,3866.4,0.11542219]
[1734260028243,3.24933409,3866.6,3865.8,1.84239046]
[1734260028448,2.58626,3866.6,3866.5,0.11538684]
[1734260028747,2.58626,3866.6,3865.9,2.24067033]
[1734260028748,2.58626,3866.6,3865.8,1.84239046]
[1734260028982,2.58626,3866.6,3866.5,0.11538684]
[1734260029166,2.58626,3866.6,3865.8,1.84239046]
[1734260029365,2.58626,3866.6,3865.9,2.35646359]
[1734260029566,3.67040457,3866.6,3866.5,0.11538684]
[1734260029762,3.18905508,3866.6,3866.0,0.1155636]
[1734260029962,1.68693965,3866.6,3866.0,0.1155636]
[1734260030201,2.58642,3866.4,3865.7,1.08159046]
[1734260030362,2.58642,3866.4,3866.1,0.11544169]
[1734260030586,2.58645,3866.3,3865.7,1.08159046]
[1734260030790,2.58645,3866.3,3866.2,0.11540634]
[1734260031001,2.58333663,3866.3,3865.7,1.08159046]
[1734260031316,2.58333663,3866.3,3866.2,0.11540634]
[1734260031487,2.58333663,3866.3,3865.7,1.08159046]
[1734260031687,2.58333663,3866.3,3866.2,0.11540634]
[1734260031892,2.58333663,3866.3,3865.7,1.08159046]
[1734260032075,2.58333663,3866.3,3866.2,0.11540634]
[1734260032282,2.58333663,3866.3,3865.7,1.08159046]
[1734260032484,2.58333663,3866.3,3866.2,0.11540634]
[1734260032840,2.58333663,3866.3,3865.6,1.08159046]
[1734260032841,2.58661,3866.1,3865.6,1.08159046]
[1734260033001,2.58661,3866.1,3865.7,2.24230873]
[1734260033196,2.58661,3866.1,3865.8,0.89692349]
[1734260033396,2.58661,3866.1,3865.5,1.91439046]
[1734260033732,2.58661,3866.1,3865.6,2.24255621]
[1734260034035,2.58676,3865.9,3865.7,2.24255621]
[1734260034181,0.2252,3865.8,3865.4,1.08159046]
[1734260034388,2.58693,3865.6,3865.5,2.24277306]
[1734260034604,2.58693,3865.6,3865.5,0.89713073]
[1734260034802,2.58693,3865.6,3865.2,1.08159046]
[1734260035145,2.58693,3865.6,3865.3,2.24266613]
[1734260035284,2.58693,3865.6,3865.4,0.89706645]
[1734260035628,2.58693,3865.6,3865.1,1.08159046]
[1734260035828,2.58693,3865.6,3865.2,3.32388809]
[1734260036038,2.812,3865.8,3865.3,2.24229763]
[1734260036329,2.812,3865.8,3865.4,2.24229763]
[1734260036508,2.812,3865.8,3865.2,1.08159046]
[1734260036707,2.812,3865.8,3865.3,2.24195428]
[1734260036897,2.812,3865.8,3865.4,2.24195428]
[1734260037099,2.812,3865.8,3865.2,1.08159046]
[1734260037406,2.812,3865.8,3865.3,2.24198342]
[1734260037606,2.812,3865.8,3865.4,1.01272541]
[1734260037806,2.812,3865.8,3865.4,0.11593204]
[1734260038054,2.812,3865.8,3865.2,1.08159046]
[1734260038228,2.812,3865.8,3865.3,2.35793761]
[1734260038400,2.812,3865.8,3865.4,0.89678808]
[1734260038606,2.812,3865.8,3865.5,0.11589667]
[1734260038800,2.58686,3865.7,3865.1,1.08159046]
[1734260039042,2.58686,3865.7,3865.2,2.35781183]
[1734260039251,2.58686,3865.7,3865.3,2.24180905]
[1734260039412,2.58686,3865.7,3865.4,1.01266108]
[1734260039607,2.58686,3865.7,3865.4,0.11593746]
[1734260040142,2.58686,3865.7,3865.5,0.11589667]
[1734260040503,2.58686,3865.7,3865.1,1.08159046]
[1734260040730,2.58686,3865.7,3865.6,0.11586131]
[1734260041206,2.58686,3865.7,3865.1,1.08159046]
[1734260041401,2.58686,3865.7,3865.2,2.35733305]
[1734260041641,2.58686,3865.7,3865.3,0.89653211]
[1734260041800,2.58686,3865.7,3865.4,0.11593204]
[1734260042003,2.58686,3865.7,3865.1,1.08159046]
[1734260042237,2.58686,3865.7,3865.2,2.35739388]
[1734260042458,2.58686,3865.7,3865.3,0.89655644]
[1734260042669,2.58686,3865.7,3865.4,0.11593204]
[1734260042826,2.58686,3865.7,3865.1,1.08159046]
[1734260043024,2.58686,3865.7,3865.2,2.35716541]
[1734260043277,3.11420923,3865.9,3865.3,0.89646505]
[1734260043405,3.11420923,3865.9,3865.4,0.94596117]
[1734260043862,2.58678,3865.8,3865.4,0.94596117]
[1734260044743,0.52748923,3865.9,3865.4,0.94596117]
[1734260045069,3.11420923,3865.9,3865.4,0.94596117]
[1734260045227,3.67071457,3866.2,3865.4,0.94596117]
[1734260045558,3.67071457,3866.2,3865.4,0.8298]
[1734260045941,2.58657,3866.2,3865.5,0.11621238]
[1734260046768,3.67071457,3866.2,3865.5,0.11621238]
[1734260048547,1.08414457,3866.2,3865.6,0.8298]
[1734260048708,1.08414457,3866.3,3865.6,0.8298]
[1734260048908,1.08414457,3866.3,3865.7,0.116106]
[1734260049128,1.08414457,3866.5,3865.7,0.116106]
[1734260049852,2.58639,3866.4,3865.7,0.116106]
[1734260053019,2.58647,3866.3,3865.7,0.116106]
[1734260056275,0.2252,3866.2,3865.7,0.116106]
[1734260056558,2.58672,3865.9,3865.3,0.7885]
[1734260056775,2.58672,3865.9,3865.8,0.11590525]
[1734260056920,1.30934457,3866.2,3865.3,0.7885]
[1734260057124,2.5868,3865.8,3865.4,0.89625496]
[1734260057486,2.5868,3865.8,3865.4,0.11603652]
[1734260062561,1.30934457,3866.2,3865.4,0.11603652]
[1734260062770,3.1062989,3866.3,3865.5,1.68466262]
[1734260062974,3.1062989,3866.3,3865.5,0.7885]
[1734260063122,2.58663,3866.1,3865.6,0.11604217]
[1734260063465,2.58663,3866.1,3865.5,0.7885]
[1734260063766,1.60393347,3866.3,3865.6,0.11603708]
[1734260063991,2.58666,3866.0,3865.6,0.11603708]
[1734260064331,2.58666,3866.0,3865.5,0.7885]
[1734260064528,2.58666,3866.0,3865.7,0.11600172]
[1734260064867,2.58666,3866.0,3865.8,0.11593998]
[1734260065029,2.58666,3866.0,3865.5,0.7885]
[1734260065226,2.58666,3866.0,3865.6,0.1160107]
[1734260065430,2.58666,3866.0,3865.5,0.7885]
[1734260065677,2.58666,3866.0,3865.6,0.11602103]
[1734260065873,2.58666,3866.0,3865.5,0.7885]
[1734260066170,2.58666,3866.0,3865.6,0.11598]
[1734260066466,2.58666,3866.0,3865.5,0.7885]
[1734260066633,2.58666,3866.0,3865.6,0.11594165]
[1734260066830,2.58666,3866.0,3865.5,0.7885]
[1734260067031,1.60393347,3866.3,3865.6,0.11595265]
[1734260067032,0.2252,3865.9,3865.6,0.11595265]
[1734260067239,2.58685,3865.7,3865.2,0.7885]
[1734260067482,0.2252,3865.9,3865.3,1.01211452]
[1734260067772,2.58696,3865.6,3865.3,0.11610969]
[1734260068139,0.38959246,3865.9,3865.1,0.8118]
[1734260068345,2.58694,3865.6,3865.4,0.11610997]
[1734260068548,2.58694,3865.6,3865.1,0.8118]
[1734260068764,2.58694,3865.6,3865.5,0.11607461]
[1734260069268,2.58694,3865.6,3865.1,0.8118]
[1734260069575,2.58694,3865.6,3865.2,1.01239652]
[1734260069742,2.58694,3865.6,3865.2,0.11618071]
[1734260069942,2.81214,3865.6,3865.2,0.11618071]
[1734260070735,2.58694,3865.6,3865.2,0.11618071]
[1734260073683,2.58694,3865.6,3865.3,0.89677519]
[1734260073982,2.58694,3865.6,3865.4,0.11245181]
[1734260074481,2.58694,3865.6,3865.5,0.11241644]
[1734260074946,2.58694,3865.6,3865.1,1.89339046]
[1734260075146,2.58694,3865.6,3865.5,0.11239767]
[1734260075346,2.58694,3865.6,3865.1,1.89339046]
[1734260075574,2.58694,3865.6,3865.5,0.11241135]
[1734260075745,2.58694,3865.6,3865.1,1.89339046]
[1734260075948,2.58679,3865.8,3865.5,0.11241135]
[1734260076171,2.58679,3865.8,3865.2,2.24208215]
[1734260076481,2.58679,3865.8,3865.2,1.34524929]
[1734260076682,2.58679,3865.8,3865.3,0.11248209]
[1734260076977,2.58679,3865.8,3865.2,1.34524929]
[1734260077182,2.58679,3865.8,3865.4,0.11244672]
[1734260077382,2.58679,3865.8,3865.3,0.11248209]
[1734260077554,2.58679,3865.8,3865.1,0.8118]
[1734260077760,2.58679,3865.8,3865.4,0.11244672]
[1734260077955,2.58679,3865.8,3865.2,1.08159046]
[1734260078475,2.58679,3865.8,3865.3,0.11248209]
[1734260078650,2.58679,3865.8,3865.2,1.08159046]
[1734260078849,2.58679,3865.8,3865.3,0.11258392]
[1734260079051,2.58679,3865.8,3865.3,2.24201608]
[1734260079254,2.58679,3865.8,3865.4,0.11254855]
[1734260082292,2.58679,3865.8,3865.2,1.08159046]
[1734260082462,3.67083457,3866.0,3865.3,0.11258392]
[1734260082995,2.58672,3865.9,3865.3,0.11258392]
[1734260084095,2.58672,3865.9,3865.4,2.24282813]
[1734260084393,2.58672,3865.9,3865.5,0.11252686]
[1734260084692,0.55222814,3865.9,3865.5,0.11252686]
[1734260084894,2.81212,3865.6,3865.1,1.89339046]
[1734260085199,2.81212,3865.6,3865.2,1.00991981]
[1734260085494,2.58699,3865.5,3865.2,0.11266033]
[1734260085694,0.2252,3865.6,3865.2,0.11266033]
[1734260085867,0.2252,3865.6,3864.7,1.62238569]
[1734260085868,2.58708,3865.4,3864.8,1.85469046]
[1734260086200,2.58708,3865.4,3864.9,2.24320193]
[1734260086396,2.58708,3865.4,3865.0,0.89728077]
[1734260086695,2.58712,3865.3,3865.1,0.11268014]
[1734260087007,2.58712,3865.3,3864.8,0.7731]
[1734260087209,2.58712,3865.3,3865.2,0.11264476]
[1734260087411,2.58712,3865.3,3864.8,0.7731]
[1734260087576,2.58712,3865.3,3864.9,2.24270203]
[1734260087893,2.58712,3865.3,3864.9,0.11276457]
[1734260098605,0.52500323,3865.4,3864.9,0.11276457]
[1734260099121,2.587,3865.5,3864.9,0.11276457]
[1734260100408,2.58707,3865.4,3864.9,0.11276457]
[1734260103067,1.06580289,3865.5,3864.9,0.11276457]
[1734260103515,1.06580289,3865.5,3865.0,0.89678424]
[1734260103716,1.06580289,3865.5,3865.1,0.10940072]
[1734260103931,1.06580289,3865.5,3864.8,0.7731]
[1734260104095,1.06580289,3865.5,3865.2,0.10936534]
[1734260104295,1.06580289,3865.5,3864.8,0.7731]
[1734260104492,1.06580289,3865.5,3864.9,2.35147011]
[1734260104695,1.06580289,3865.5,3865.0,0.89679945]
[1734260104891,1.06580289,3865.5,3865.1,0.10940072]
[1734260105141,1.06580289,3865.5,3864.8,0.7731]
[1734260105345,1.06580289,3865.5,3865.2,0.10936534]
[1734260105544,1.06580289,3865.5,3864.8,0.7731]
[1734260105695,1.06580289,3865.5,3865.3,0.10932996]
[1734260105896,1.06580289,3865.5,3864.8,0.7731]
[1734260106095,1.06580289,3865.5,3864.9,2.35151403]
[1734260106327,1.06580289,3865.5,3865.0,0.89681702]
[1734260106531,1.06580289,3865.5,3864.9,0.10947148]
[1734260106740,1.06580289,3865.5,3865.1,0.10940072]
[1734260106897,1.06580289,3865.5,3865.0,0.1094361]
[1734260107100,1.06580289,3865.5,3864.8,0.7731]
[1734260107356,1.06580289,3865.5,3864.9,2.35162025]
[1734260107649,1.06580289,3865.5,3865.0,0.89685951]
[1734260107957,1.06580289,3865.5,3865.1,0.10940072]
[1734260108315,1.06580289,3865.5,3864.8,0.7731]
[1734260108514,1.06580289,3865.5,3864.9,2.35172509]
[1734260108701,1.06580289,3865.5,3865.0,0.89690144]
[1734260108899,1.06580289,3865.5,3865.1,0.10940072]
[1734260109141,1.06580289,3865.5,3864.8,0.7731]
[1734260109316,1.06580289,3865.5,3865.2,0.10936534]
[1734260109542,1.06580289,3865.5,3864.8,1.85469046]
[1734260109741,1.06580289,3865.5,3865.3,0.10932996]
[1734260109970,1.06580289,3865.5,3864.8,1.85469046]
[1734260110261,1.06580289,3865.5,3865.4,0.10929458]
[1734260110442,1.66616126,3865.5,3864.8,1.85469046]
[1734260110645,1.06580289,3865.5,3865.4,0.10929458]
[1734260111111,1.06580289,3865.5,3864.8,1.85469046]
[1734260111316,1.08414457,3865.7,3864.9,2.35230526]
[1734260111567,1.08414457,3866.0,3865.3,0.796]
[1734260111784,1.08414457,3866.1,3865.4,3.03885043]
[1734260112048,1.08414457,3866.2,3865.5,2.24261393]
[1734260112357,1.08414457,3866.2,3865.6,0.1090711]
[1734260112672,0.51114623,3866.1,3865.6,0.1090711]
[1734260112962,0.51114623,3866.1,3865.7,0.10903573]
[1734260113314,0.51114623,3866.1,3865.4,0.796]
[1734260113514,0.51114623,3866.1,3865.5,2.35151485]
[1734260113716,0.51114623,3866.1,3865.6,0.89696335]